fUST/lending_fUST_20250313
["ID","MTS","AMOUNT","RATE_DAILY","PERIOD"]
[356022557,1741803067823,-500.0,0.00023013,2]
[356022558,1741803067832,-500.0,0.00023013,2]
[356022559,1741803067841,-824.96,0.00023013,2]
[356022560,1741803067850,-500.0,0.00023013,2]
[356022561,1741803067859,-500.0,0.00023013,2]
[356022562,1741803067869,-500.0,0.00023013,2]
[356022563,1741803067878,-500.0,0.00023013,2]
[356022564,1741803067887,-625.12,0.00023013,2]
[356022565,1741803067897,-500.0,0.00023013,2]
[356022566,1741803067907,-500.0,0.00023013,2]
[356022567,1741803067916,-598.42,0.00023013,2]
[356022568,1741803067926,-500.0,0.00023013,2]
[356022569,1741803067935,-500.0,0.00023013,2]
[356022570,1741803067944,-500.0,0.00023013,2]
[356022571,1741803067954,-500.0,0.00023013,2]
[356022572,1741803067963,-775.01,0.00023013,2]
[356022573,1741803067973,-500.0,0.00023013,2]
[356022574,1741803067982,-500.0,0.00023013,2]
[356022575,1741803067992,-500.0,0.00023013,2]
[356022576,1741803068001,-1015.78,0.00023013,2]
[356022577,1741803068010,-500.0,0.00023013,2]
[356022578,1741803068019,-500.0,0.00023013,2]
[356022579,1741803068029,-500.0,0.00023013,2]
[356022580,1741803068040,-500.0,0.00023013,2]
[356022581,1741803068049,-500.0,0.00023013,2]
[356022582,1741803068058,-1457.49,0.00023013,2]
[356022583,1741803068068,-500.0,0.00023013,2]
[356022584,1741803068077,-500.0,0.00023013,2]
[356022585,1741803068086,-500.0,0.00023013,2]
[356022586,1741803068096,-500.0,0.00023013,2]
[356022587,1741803068106,-1620.15,0.00023013,2]
[356022588,1741803068115,-581.01,0.00023013,2]
[356022589,1741803068125,-500.0,0.00023013,2]
[356022590,1741803068134,-2393.9,0.00023013,2]
[356022591,1741803068143,-1636.45,0.00023013,2]
[356022592,1741803068153,-907.13,0.00023013,2]
[356022593,1741803068162,-500.0,0.00023013,2]
[356022594,1741803068176,-500.0,0.00023013,2]
[356022595,1741803068185,-1017.18,0.00023013,2]
[356022596,1741803068198,-500.0,0.00023013,2]
[356022597,1741803068208,-500.0,0.00023013,2]
[356022598,1741803068218,-500.0,0.00023013,2]
[356022599,1741803068228,-500.0,0.00023013,2]
[356022600,1741803068238,-500.0,0.00023013,2]
[356022601,1741803068249,-500.0,0.00023013,2]
[356022602,1741803068260,-500.0,0.00023013,2]
[356022603,1741803068269,-500.0,0.00023013,2]
[356022604,1741803068278,-500.0,0.00023013,2]
[356022605,1741803068289,-274.44098617,0.00023013,2]
[356022606,1741803068300,-500.0,0.00023013,2]
[356022607,1741803068309,-480.79818862,0.00023013,2]
[356022608,1741803068319,-500.0,0.00023013,2]
[356022609,1741803068329,-500.0,0.00023013,2]
[356022610,1741803068338,-994.72,0.00023013,2]
[356022611,1741803068348,-394.84998173,0.00023013,2]
[356022612,1741803068358,-500.0,0.00023013,2]
[356022613,1741803068367,-500.0,0.00023013,2]
[356022614,1741803068376,-500.0,0.00023013,2]
[356022615,1741803068386,-500.0,0.00023013,2]
[356022616,1741803068395,-500.0,0.00023013,2]
[356022617,1741803068405,-500.0,0.00023013,2]
[356022618,1741803068414,-1090.97,0.00023013,2]
[356022619,1741803068424,-1098.0,0.00023013,2]
[356022620,1741803068433,-651.57,0.00023013,2]
[356022621,1741803068443,-500.0,0.00023013,2]
[356022622,1741803068453,-500.0,0.00023013,2]
[356022623,1741803068462,-500.0,0.00023013,2]
[356022624,1741803068471,-530.88,0.00023013,2]
[356022625,1741803068481,-500.0,0.00023013,2]
[356022626,1741803068490,-500.0,0.00023013,2]
[356022627,1741803068500,-1126.13,0.00023013,2]
[356022628,1741803068509,-747.55,0.00023013,2]
[356022629,1741803068519,-500.0,0.00023013,2]
[356022630,1741803068528,-500.0,0.00023013,2]
[356022631,1741803068539,-530.53,0.00023013,2]
[356022632,1741803068548,-500.0,0.00023013,2]
[356022633,1741803068558,-896.36,0.00023013,2]
[356022634,1741803068567,-500.0,0.00023013,2]
[356022635,1741803068577,-500.0,0.00023013,2]
[356022636,1741803068586,-500.0,0.00023013,2]
[356022637,1741803068596,-520.4,0.00023013,2]
[356022638,1741803068605,-500.0,0.00023013,2]
[356022639,1741803068615,-500.0,0.00023013,2]
[356022640,1741803068625,-500.0,0.00023013,2]
[356022641,1741803068634,-1170.9,0.00023013,2]
[356022642,1741803068644,-500.0,0.00023013,2]
[356022643,1741803068654,-500.0,0.00023013,2]
[356022644,1741803068663,-500.0,0.00023013,2]
[356022645,1741803068672,-500.0,0.00023013,2]
[356022646,1741803068683,-500.0,0.00023013,2]
[356022647,1741803068693,-500.0,0.00023013,2]
[356022648,1741803068702,-500.0,0.00023013,2]
[356022649,1741803068712,-500.0,0.00023013,2]
[356022650,1741803068722,-7587.18,0.00023013,2]
[356022651,1741803068733,-500.0,0.00023013,2]
[356022652,1741803068745,-500.0,0.00023013,2]
[356022653,1741803068755,-1902.88,0.00023013,2]
[356022654,1741803068765,-500.0,0.00023013,2]
[356022655,1741803068775,-500.0,0.00023013,2]
[356022656,1741803068786,-501.57,0.00023013,2]
[356022657,1741803068795,-500.0,0.00023013,2]
[356022658,1741803068805,-500.0,0.00023013,2]
[356022659,1741803068815,-500.0,0.00023013,2]
[356022660,1741803068824,-500.0,0.00023013,2]
[356022661,1741803068834,-500.0,0.00023013,2]
[356022662,1741803068843,-1238.08,0.00023013,2]
[356022663,1741803068853,-500.0,0.00023013,2]
[356022664,1741803068863,-541.7,0.00023013,2]
[356022665,1741803068872,-1960.99,0.00023013,2]
[356022666,1741803068882,-930.87,0.00023013,2]
[356022667,1741803068893,-500.0,0.00023013,2]
[356022668,1741803068902,-610.11,0.00023013,2]
[356022669,1741803068912,-500.0,0.00023013,2]
[356022670,1741803068922,-1212.43,0.00023013,2]
[356022671,1741803068933,-1233.5,0.00023013,2]
[356022672,1741803068943,-1343.7,0.00023013,2]
[356022673,1741803068952,-1789.61,0.00023013,2]
[356022674,1741803068962,-500.0,0.00023013,2]
[356022675,1741803068973,-500.0,0.00023013,2]
[356022676,1741803068983,-772.1,0.00023013,2]
[356022677,1741803068994,-517.89,0.00023013,2]
[356022678,1741803069004,-1978.58,0.00023013,2]
[356022679,1741803069014,-637.99,0.00023013,2]
[356022680,1741803069024,-1113.5,0.00023013,2]
[356022681,1741803069034,-500.0,0.00023013,2]
[356022682,1741803069044,-2819.17,0.00023013,2]
[356022683,1741803069054,-1464.3,0.00023013,2]
[356022684,1741803069064,-500.0,0.00023013,2]
[356022685,1741803069075,-3228.35,0.00023013,2]
[356022686,1741803069084,-500.0,0.00023013,2]
[356022687,1741803069094,-500.0,0.00023013,2]
[356022688,1741803069104,-500.0,0.00023013,2]
[356022689,1741803069114,-500.0,0.00023013,2]
[356022690,1741803069123,-500.0,0.00023013,2]
[356022691,1741803069133,-500.0,0.00023013,2]
[356022692,1741803069147,-500.0,0.00023013,2]
[356022693,1741803069157,-2548.71,0.00023013,2]
[356022694,1741803069167,-1130.93,0.00023013,2]
[356022695,1741803069177,-2046.27,0.00023013,2]
[356022696,1741803069186,-500.0,0.00023013,2]
[356022697,1741803069195,-500.0,0.00023013,2]
[356022698,1741803069206,-579.67,0.00023013,2]
[356022699,1741803069216,-823.78,0.00023013,2]
[356022700,1741803069226,-1217.5,0.00023013,2]
[356022701,1741803069236,-500.0,0.00023013,2]
[356022702,1741803069248,-981.87,0.00023013,2]
[356022703,1741803069258,-639.26717078,0.00023013,2]
[356022704,1741803069267,-1517.5,0.00023013,2]
[356022705,1741803069276,-987.07,0.00023013,2]
[356022706,1741803069287,-500.0,0.00023013,2]
[356022707,1741803069296,-678.09,0.00023013,2]
[356022708,1741803069472,-16057.6,0.00023013,2]
[356022709,1741803069484,-1075.18,0.00023013,2]
[356022710,1741803069494,-631.59,0.00023013,2]
[356022711,1741803069503,-528.18,0.00023013,2]
[356022712,1741803069513,-856.9,0.00023013,2]
[356022713,1741803069523,-1522.52,0.00023013,2]
[356022714,1741803069533,-500.0,0.00023013,2]
[356022715,1741803069543,-3781.11,0.00023013,2]
[356022716,1741803069553,-520.04526823,0.00023013,2]
[356022717,1741803069562,-514.1262304,0.00023013,2]
[356022718,1741803069573,-500.0,0.00023013,2]
[356022719,1741803069583,-868.04,0.00023013,2]
[356022720,1741803069592,-500.0,0.00023013,2]
[356022721,1741803069602,-500.0,0.00023013,2]
[356022722,1741803069611,-743.32,0.00023013,2]
[356022723,1741803069620,-969.48,0.00023013,2]
[356022724,1741803069630,-1685.25,0.00023013,2]
[356022725,1741803069640,-500.0,0.00023013,2]
[356022726,1741803069649,-508.30602889,0.00023013,2]
[356022727,1741803069658,-1975.24,0.00023013,2]
[356022728,1741803069667,-1147.55,0.00023013,2]
[356022729,1741803069677,-500.0,0.00023013,2]
[356022730,1741803069686,-500.0,0.00023013,2]
[356022731,1741803069695,-1643.42,0.00023013,2]
[356022732,1741803069704,-2905.55,0.00023013,2]
[356022733,1741803069713,-773.13,0.00023013,2]
[356022734,1741803069723,-1000.0,0.00023013,7]
[356022735,1741803069732,-722.49,0.00023013,2]
[356022736,1741803069741,-703.11,0.00023013,2]
[356022737,1741803069751,-4847.4,0.00023013,2]
[356022738,1741803069760,-987.14,0.00023013,2]
[356022739,1741803069770,-1469.23,0.00023013,2]
[356022740,1741803069779,-500.0,0.00023013,2]
[356022741,1741803069791,-1198.86,0.00023013,2]
[356022742,1741803069800,-500.0,0.00023013,2]
[356022743,1741803069810,-500.0,0.00023013,2]
[356022744,1741803069820,-500.0,0.00023013,2]
[356022745,1741803069829,-1433.14,0.00023013,2]
[356022746,1741803069839,-811.21,0.00023013,2]
[356022747,1741803069848,-512.83057655,0.00023013,2]
[356022748,1741803069857,-500.0,0.00023013,2]
[356022749,1741803069867,-32549.59,0.00023013,2]
[356022750,1741803069876,-500.0,0.00023013,2]
[356022751,1741803069893,-671.34,0.00023013,2]
[356022752,1741803069903,-500.0,0.00023013,2]
[356022753,1741803069913,-716.39,0.00023013,2]
[356022754,1741803069922,-660.16,0.00023013,2]
[356022755,1741803069932,-1515.81,0.00023013,2]
[356022756,1741803069942,-500.0,0.00023013,2]
[356022757,1741803069951,-500.0,0.00023013,2]
[356022758,1741803069960,-2047.45,0.00023013,2]
[356022759,1741803069970,-500.0,0.00023013,2]
[356022760,1741803069979,-500.0,0.00023013,2]
[356022761,1741803069989,-500.0,0.00023013,2]
[356022762,1741803069999,-500.0,0.00023013,2]
[356022763,1741803070011,-500.0,0.00023013,2]
[356022764,1741803070020,-503.63777399,0.00023013,2]
[356022765,1741803070030,-2437.52,0.00023013,2]
[356022766,1741803070044,-777.73,0.00023013,2]
[356022767,1741803070054,-500.0,0.00023013,2]
[356022768,1741803070065,-500.0,0.00023013,2]
[356022769,1741803070074,-500.0,0.00023013,2]
[356022770,1741803070084,-500.0,0.00023013,2]
[356022771,1741803070094,-727.91,0.00023013,2]
[356022772,1741803070104,-1234.15,0.00023013,2]
[356022773,1741803070114,-927.27,0.00023013,2]
[356022774,1741803070124,-1043.03,0.00023013,2]
[356022775,1741803070134,-500.0,0.00023013,2]
[356022776,1741803070144,-500.0,0.00023013,2]
[356022777,1741803070154,-500.0,0.00023013,2]
[356022778,1741803070163,-683.89,0.00023013,2]
[356022779,1741803070176,-1257.94,0.00023013,2]
[356022780,1741803070186,-500.0,0.00023013,2]
[356022781,1741803070195,-500.0,0.00023013,2]
[356022782,1741803070205,-500.0,0.00023013,2]
[356022783,1741803070215,-500.0,0.00023013,2]
[356022784,1741803070224,-565.25,0.00023013,2]
[356022785,1741803070234,-335.04563205,0.00023013,2]
[356022786,1741803070243,-1047.77,0.00023013,2]
[356022787,1741803070254,-500.0,0.00023013,2]
[356022788,1741803070265,-3477.23,0.00023013,2]
[356022789,1741803070274,-740.15,0.00023013,2]
[356022790,1741803070283,-500.0,0.00023013,2]
[356022791,1741803070296,-3349.83,0.00023013,2]
[356022792,1741803070305,-1141.52,0.00023013,2]
[356022793,1741803070314,-500.0,0.00023013,2]
[356022794,1741803070323,-1151.66,0.00023013,2]
[356022795,1741803070333,-2458.65,0.00023013,2]
[356022796,1741803070343,-500.0,0.00023013,2]
[356022797,1741803070352,-500.0,0.00023013,2]
[356022798,1741803070362,-500.0,0.00023013,2]
[356022799,1741803070371,-500.0,0.00023013,2]
[356022800,1741803070381,-503.08150973,0.00023013,2]
[356022801,1741803070390,-500.0,0.00023013,2]
[356022802,1741803070400,-807.83,0.00023013,2]
[356022803,1741803070409,-500.0,0.00023013,2]
[356022804,1741803070419,-500.0,0.00023013,2]
[356022805,1741803070428,-500.0,0.00023013,2]
[356022806,1741803070437,-1443.57,0.00023013,2]
[356022807,1741803070446,-500.0,0.00023013,2]
[356022808,1741803070455,-1939.01,0.00023013,2]
[356022809,1741803070465,-548.82,0.00023013,2]
[356022810,1741803070475,-166.0,0.00023014,2]
[356022811,1741803070484,-150.0,0.00023073,2]
[356022812,1741803070494,-1918.0,0.00023073,2]
[356022813,1741803070503,-540.0,0.00023073,2]
[356022814,1741803070512,-420.0,0.00023108,2]
[356022815,1741803070522,-2272.0,0.00023163,2]
[356022816,1741803070531,-398.0,0.00023163,2]
[356022817,1741803070546,-796.15704364,0.00023171,30]
[356022818,1741803070555,-500.0,0.0002328,7]
[356022819,1741803070565,-500.0,0.0002328,7]
[356022820,1741803070575,-524.16351386,0.0002328,7]
[356022821,1741803070585,-2519.53,0.00023286,2]
[356022822,1741803070594,-1508.75,0.00023286,2]
[356022823,1741803070604,-966.03,0.00023286,2]
[356022824,1741803070614,-536.39463067,0.00023286,2]
[356022825,1741803070623,-500.0,0.00023286,2]
[356022826,1741803070632,-500.0,0.00023287,2]
[356022827,1741803070642,-500.0,0.00023287,5]
[356022828,1741803070651,-151.0,0.00023287,7]
[356022829,1741803070660,-275.54732338,0.00023287,2]
[356022830,1741803070669,-500.0,0.00023287,2]
[356022831,1741803070679,-500.0,0.00023287,2]
[356022832,1741803070688,-500.0,0.00023287,2]
[356022833,1741803070698,-500.0,0.00023287,2]
[356022834,1741803070707,-515.47303822,0.00023287,2]
[356022835,1741803070717,-500.0,0.00023287,2]
[356022836,1741803070727,-500.0,0.00023287,2]
[356022837,1741803070737,-500.0,0.00023287,2]
[356022838,1741803070746,-500.0,0.00023287,2]
[356022839,1741803070756,-500.0,0.00023287,2]
[356022840,1741803070765,-527.25,0.00023287,2]
[356022841,1741803070775,-500.0,0.00023287,2]
[356022842,1741803070784,-500.0,0.00023287,2]
[356022843,1741803070796,-175.0,0.00023287,2]
[356022844,1741803070806,-500.0,0.00023287,2]
[356022845,1741803070815,-500.0,0.00023287,2]
[356022846,1741803070824,-500.0,0.00023287,2]
[356022847,1741803070834,-500.0,0.00023287,2]
[356022848,1741803070843,-500.0,0.00023287,2]
[356022849,1741803070852,-500.0,0.00023287,2]
[356022850,1741803070862,-500.0,0.00023287,2]
[356022851,1741803070872,-500.0,0.00023287,2]
[356022852,1741803070882,-500.0,0.00023287,2]
[356022853,1741803070891,-511.82,0.00023287,2]
[356022854,1741803070901,-599.5,0.00023287,2]
[356022855,1741803070910,-632.72,0.00023287,2]
[356022856,1741803070919,-603.18,0.00023287,2]
[356022857,1741803070928,-500.0,0.00023287,2]
[356022858,1741803070938,-500.0,0.00023287,2]
[356022859,1741803070948,-824.96,0.00023287,2]
[356022860,1741803070957,-500.0,0.00023287,2]
[356022861,1741803070966,-500.0,0.00023287,2]
[356022862,1741803070975,-500.0,0.00023287,2]
[356022863,1741803070985,-500.0,0.00023287,2]
[356022864,1741803070994,-625.12,0.00023287,2]
[356022865,1741803071004,-420.53971474,0.00023287,2]
[356022866,1741803071013,-500.0,0.00023287,2]
[356022867,1741803071022,-598.42,0.00023287,2]
[356022868,1741803071032,-500.0,0.00023287,2]
[356022869,1741803071043,-500.0,0.00023287,2]
[356022870,1741803071052,-426.18127065,0.00023287,2]
[356022871,1741803071061,-500.0,0.00023287,2]
[356022872,1741803071071,-775.01,0.00023287,2]
[356022873,1741803071080,-500.0,0.00023287,2]
[356022874,1741803071090,-500.0,0.00023287,2]
[356022875,1741803071099,-500.0,0.00023287,2]
[356022876,1741803071108,-1015.78,0.00023287,2]
[356022877,1741803071117,-500.0,0.00023287,2]
[356022878,1741803071127,-500.0,0.00023287,2]
[356022879,1741803071137,-500.0,0.00023287,2]
[356022880,1741803071147,-500.0,0.00023287,2]
[356022881,1741803071156,-500.0,0.00023287,2]
[356022882,1741803071168,-1457.49,0.00023287,2]
[356022883,1741803071177,-500.0,0.00023287,2]
[356022884,1741803071186,-500.0,0.00023287,2]
[356022885,1741803071196,-500.0,0.00023287,2]
[356022886,1741803071206,-500.0,0.00023287,2]
[356022887,1741803071215,-1620.15,0.00023287,2]
[356022888,1741803071225,-581.01,0.00023287,2]
[356022889,1741803071234,-500.0,0.00023287,2]
[356022890,1741803071245,-2393.9,0.00023287,2]
[356022891,1741803071255,-1636.45,0.00023287,2]
[356022892,1741803071265,-907.13,0.00023287,2]
[356022893,1741803071275,-500.0,0.00023287,2]
[356022894,1741803071286,-500.0,0.00023287,2]
[356022895,1741803071296,-500.0,0.00023287,2]
[356022896,1741803071305,-500.0,0.00023287,2]
[356022897,1741803071314,-500.0,0.00023287,2]
[356022898,1741803071324,-500.0,0.00023287,2]
[356022899,1741803071333,-500.0,0.00023287,2]
[356022900,1741803071343,-500.0,0.00023287,2]
[356022901,1741803071352,-500.0,0.00023287,2]
[356022902,1741803071362,-500.0,0.00023287,2]
[356022903,1741803071372,-500.0,0.00023287,2]
[356022904,1741803071381,-500.0,0.00023287,2]
[356022905,1741803071391,-500.0,0.00023287,2]
[356022906,1741803071400,-1017.18,0.00023287,2]
[356022907,1741803071409,-500.0,0.00023287,2]
[356022908,1741803071418,-500.0,0.00023287,2]
[356022909,1741803071427,-500.0,0.00023287,2]
[356022910,1741803071437,-500.0,0.00023287,2]
[356022911,1741803071447,-500.0,0.00023287,2]
[356022912,1741803071456,-500.0,0.00023287,2]
[356022913,1741803071465,-500.0,0.00023287,2]
[356022914,1741803071475,-500.0,0.00023287,2]
[356022915,1741803071484,-500.0,0.00023287,2]
[356022916,1741803071493,-500.0,0.00023287,2]
[356022917,1741803071503,-500.0,0.00023287,2]
[356022918,1741803071512,-500.0,0.00023287,2]
[356022919,1741803071521,-500.0,0.00023287,2]
[356022920,1741803071530,-500.0,0.00023287,2]
[356022921,1741803071541,-500.0,0.00023287,2]
[356022922,1741803071550,-500.0,0.00023287,2]
[356022923,1741803071560,-500.0,0.00023287,2]
[356022924,1741803071569,-500.0,0.00023287,2]
[356022925,1741803071578,-500.0,0.00023287,2]
[356022926,1741803071587,-500.0,0.00023287,2]
[356022927,1741803071597,-500.0,0.00023287,2]
[356022928,1741803071606,-775.09514661,0.00023287,2]
[356022929,1741803071615,-494.64,0.00023287,2]
[356022930,1741803071624,-500.0,0.00023287,2]
[356022931,1741803071634,-495.89108934,0.00023287,2]
[356022932,1741803071643,-500.0,0.00023287,2]
[356022933,1741803071653,-500.0,0.00023287,2]
[356022934,1741803071662,-500.0,0.00023287,2]
[356022935,1741803071671,-500.0,0.00023287,2]
[356022936,1741803071680,-500.0,0.00023287,2]
[356022937,1741803071690,-500.0,0.00023287,2]
[356022938,1741803071699,-500.0,0.00023287,2]
[356022939,1741803071708,-500.0,0.00023287,2]
[356022940,1741803071718,-500.0,0.00023287,2]
[356022941,1741803071727,-994.72,0.00023287,2]
[356022942,1741803071736,-500.0,0.00023287,2]
[356022943,1741803071746,-500.0,0.00023287,2]
[356022944,1741803071756,-290.5669836,0.00023287,2]
[356022945,1741803071765,-500.0,0.00023287,2]
[356022946,1741803071774,-500.0,0.00023287,2]
[356022947,1741803071783,-500.0,0.00023287,2]
[356022948,1741803071796,-1090.97,0.00023287,2]
[356022949,1741803071805,-1098.0,0.00023287,2]
[356022950,1741803071815,-651.57,0.00023287,2]
[356022951,1741803071824,-500.0,0.00023287,2]
[356022952,1741803071833,-500.0,0.00023287,2]
[356022953,1741803071842,-500.0,0.00023287,2]
[356022954,1741803071852,-530.88,0.00023287,2]
[356022955,1741803071862,-500.0,0.00023287,2]
[356022956,1741803071871,-500.0,0.00023287,2]
[356022957,1741803071880,-1126.13,0.00023287,2]
[356022958,1741803071890,-747.55,0.00023287,2]
[356022959,1741803071899,-500.0,0.00023287,2]
[356022960,1741803071908,-500.0,0.00023287,2]
[356022961,1741803071918,-530.53,0.00023287,2]
[356022962,1741803071928,-500.0,0.00023287,2]
[356022963,1741803071937,-896.36,0.00023287,2]
[356022964,1741803071947,-500.0,0.00023287,2]
[356022965,1741803071956,-500.0,0.00023287,2]
[356022966,1741803071965,-500.0,0.00023287,2]
[356022967,1741803071974,-520.4,0.00023287,2]
[356022968,1741803071984,-500.0,0.00023287,2]
[356022969,1741803071993,-500.0,0.00023287,2]
[356022970,1741803072002,-500.0,0.00023287,2]
[356022971,1741803072012,-1170.9,0.00023287,2]
[356022972,1741803072179,-500.0,0.00023287,2]
[356022973,1741803072190,-500.0,0.00023287,2]
[356022974,1741803072199,-500.0,0.00023287,2]
[356022975,1741803072211,-500.0,0.00023287,2]
[356022976,1741803072220,-500.0,0.00023287,2]
[356022977,1741803072229,-500.0,0.00023287,2]
[356022978,1741803072239,-500.0,0.00023287,2]
[356022979,1741803072250,-500.0,0.00023287,2]
[356022980,1741803072259,-7587.18,0.00023287,2]
[356022981,1741803072268,-500.0,0.00023287,2]
[356022982,1741803072278,-500.0,0.00023287,2]
[356022983,1741803072289,-1902.88,0.00023287,2]
[356022984,1741803072308,-500.0,0.00023287,2]
[356022985,1741803072319,-500.0,0.00023287,2]
[356022986,1741803072329,-501.57,0.00023287,2]
[356022987,1741803072338,-500.0,0.00023287,2]
[356022988,1741803072348,-500.0,0.00023287,2]
[356022989,1741803072358,-500.0,0.00023287,2]
[356022990,1741803072367,-500.0,0.00023287,2]
[356022991,1741803072377,-500.0,0.00023287,2]
[356022992,1741803072387,-1238.08,0.00023287,2]
[356022993,1741803072396,-500.0,0.00023287,2]
[356022994,1741803072406,-541.7,0.00023287,2]
[356022995,1741803072415,-1960.99,0.00023287,2]
[356022996,1741803072424,-930.87,0.00023287,2]
[356022997,1741803072434,-500.0,0.00023287,2]
[356022998,1741803072443,-610.11,0.00023287,2]
[356022999,1741803072453,-500.0,0.00023287,2]
[356023000,1741803072463,-1212.43,0.00023287,2]
[356023001,1741803072472,-1233.5,0.00023287,2]
[356023002,1741803072481,-1343.7,0.00023287,2]
[356023003,1741803072490,-1789.61,0.00023287,2]
[356023004,1741803072500,-500.0,0.00023287,2]
[356023005,1741803072509,-500.0,0.00023287,2]
[356023006,1741803072519,-772.1,0.00023287,2]
[356023007,1741803072529,-517.89,0.00023287,2]
[356023008,1741803072539,-1978.58,0.00023287,2]
[356023009,1741803072548,-637.99,0.00023287,2]
[356023010,1741803072559,-1113.5,0.00023287,2]
[356023011,1741803072568,-500.0,0.00023287,2]
[356023012,1741803072578,-2819.17,0.00023287,2]
[356023013,1741803072587,-1464.3,0.00023287,2]
[356023014,1741803072596,-500.0,0.00023287,2]
[356023015,1741803072605,-3228.35,0.00023287,2]
[356023016,1741803072615,-500.0,0.00023287,2]
[356023017,1741803072624,-500.0,0.00023287,2]
[356023018,1741803072633,-500.0,0.00023287,2]
[356023019,1741803072643,-500.0,0.00023287,2]
[356023020,1741803072652,-500.0,0.00023287,2]
[356023021,1741803072662,-500.0,0.00023287,2]
[356023022,1741803072671,-500.0,0.00023287,2]
[356023023,1741803072680,-2548.71,0.00023287,2]
[356023024,1741803072689,-1130.93,0.00023287,2]
[356023025,1741803072699,-2046.27,0.00023287,2]
[356023026,1741803072708,-500.0,0.00023287,2]
[356023027,1741803072718,-604.58641675,0.00023287,2]
[356023028,1741803072727,-579.67,0.00023287,2]
[356023029,1741803072737,-823.78,0.00023287,2]
[356023030,1741803072747,-1217.5,0.00023287,2]
[356023031,1741803072756,-500.0,0.00023287,2]
[356023032,1741803072766,-981.87,0.00023287,2]
[356023033,1741803072775,-1517.5,0.00023287,2]
[356023034,1741803072785,-987.07,0.00023287,2]
[356023035,1741803072796,-500.0,0.00023287,2]
[356023036,1741803072805,-678.09,0.00023287,2]
[356023037,1741803072816,-16057.6,0.00023287,2]
[356023038,1741803072826,-1075.18,0.00023287,2]
[356023039,1741803072835,-631.59,0.00023287,2]
[356023040,1741803072845,-528.18,0.00023287,2]
[356023041,1741803072854,-856.9,0.00023287,2]
[356023042,1741803072864,-1522.52,0.00023287,2]
[356023043,1741803072873,-500.0,0.00023287,2]
[356023044,1741803072884,-3781.11,0.00023287,2]
[356023045,1741803072894,-500.0,0.00023287,2]
[356023046,1741803072903,-868.04,0.00023287,2]
[356023047,1741803072912,-500.0,0.00023287,2]
[356023048,1741803072922,-500.0,0.00023287,2]
[356023049,1741803072931,-743.32,0.00023287,2]
[356023050,1741803072942,-969.48,0.00023287,2]
[356023051,1741803072951,-1685.25,0.00023287,2]
[356023052,1741803072961,-500.0,0.00023287,2]
[356023053,1741803072970,-1975.24,0.00023287,2]
[356023054,1741803072980,-1147.55,0.00023287,2]
[356023055,1741803072990,-483.87516645,0.00023287,2]
[356023056,1741803072999,-1643.42,0.00023287,2]